bitfinex-derivatives/quotes_BTCF0:USTF0_20241006
["timestamp","ask_amount","ask_price","bid_price","bid_amount"]
[1728225747165,0.20287396,62584.0,62583.0,0.8795]
[1728225747654,0.24201508,62584.0,62583.0,0.8795]
[1728225748064,0.26666302,62584.0,62583.0,0.8795]
[1728225749661,1.34602302,62584.0,62583.0,0.8795]
[1728225750373,0.26666302,62584.0,62583.0,0.8795]
[1728225750571,0.21676302,62584.0,62583.0,0.8795]
[1728225750766,0.1704,62588.0,62583.0,0.8799]
[1728225751162,0.19986823,62588.0,62583.0,0.8799]
[1728225753259,0.02986823,62588.0,62583.0,0.8799]
[1728225753461,0.19986823,62588.0,62583.0,0.8799]
[1728225753870,0.19986823,62588.0,62584.0,0.0302]
[1728225755462,0.02986823,62588.0,62584.0,0.0312]
[1728225756065,0.19986823,62588.0,62584.0,0.0312]
[1728225756268,0.19986823,62588.0,62585.0,0.8771]
[1728225757476,0.19986823,62588.0,62585.0,0.8791]
[1728225758571,0.19986823,62588.0,62587.0,0.3608]
[1728225759872,0.19986823,62588.0,62587.0,0.3618]
[1728225761272,0.19986823,62588.0,62587.0,0.3628]
[1728225761780,0.269875,62588.0,62587.0,0.3628]
[1728225762168,0.269875,62588.0,62587.0,1.2399]
[1728225765183,0.46228844,62588.0,62587.0,1.2399]
[1728225765571,0.31892938,62588.0,62587.0,1.2399]
[1728225765975,0.31892949,62588.0,62587.0,1.2399]
[1728225767079,0.46228855,62588.0,62587.0,1.2399]
[1728225768482,0.41323415,62588.0,62587.0,1.2399]
[1728225768681,0.26987509,62588.0,62587.0,1.2399]
[1728225769979,0.23073902,62588.0,62587.0,1.2399]
[1728225770576,0.23073916,62588.0,62587.0,1.2399]
[1728225771175,0.23073916,62588.0,62587.0,1.2403]
[1728225771978,0.23073916,62588.0,62587.0,0.8795]
[1728225772187,0.23073916,62588.0,62585.0,0.74536486]
[1728225772389,0.1704,62586.0,62585.0,0.72715963]
[1728225772705,0.24040889,62586.0,62585.0,0.71399257]
[1728225772882,0.30340889,62586.0,62585.0,0.71399257]
[1728225773087,1.38276889,62586.0,62583.0,0.0008]
[1728225773286,0.0004,62584.0,62583.0,0.0012]
[1728225773476,1.03120889,62584.0,62583.0,0.0012]
[1728225773675,0.43120889,62584.0,62574.0,0.34499957]
[1728225773883,0.1704,62575.0,62574.0,0.34499957]
[1728225774082,0.20127093,62575.0,62571.0,0.34499957]
[1728225774292,0.1704,62572.0,62571.0,0.34499957]
[1728225774693,0.1704,62572.0,62571.0,0.34539957]
[1728225775691,0.1704,62572.0,62571.0,0.0004]
[1728225775692,0.64984,62572.0,62571.0,0.0004]
[1728225775895,0.1704,62572.0,62571.0,0.0004]
[1728225776396,0.1704,62572.0,62571.0,0.0104]
[1728225776779,0.1704,62572.0,62571.0,0.0204]
[1728225777175,0.1704,62572.0,62571.0,0.0104]
[1728225777381,0.20069859,62572.0,62571.0,0.0024]
[1728225777980,0.03069859,62572.0,62571.0,0.0024]
[1728225779987,0.04269859,62572.0,62571.0,0.0014]
[1728225780782,0.21269859,62572.0,62571.0,0.0018]
[1728225781386,0.21269859,62572.0,62571.0,0.0008]
[1728225781589,0.21269859,62572.0,62571.0,0.0018]
[1728225783195,0.19869859,62572.0,62571.0,0.0008]
[1728225783394,0.21269859,62572.0,62571.0,0.0028]
[1728225784396,0.21269859,62572.0,62567.0,0.34499957]
[1728225784602,0.1704,62568.0,62567.0,0.31778852]
[1728225784893,0.20128149,62568.0,62567.0,0.31778852]
[1728225785099,0.20128149,62568.0,62567.0,0.24836183]
[1728225785398,0.20128149,62568.0,62567.0,0.21839983]
[1728225785695,0.20128149,62568.0,62567.0,0.19579983]
[1728225786293,0.20128149,62568.0,62567.0,0.12694983]
[1728225786493,0.20128149,62568.0,62567.0,0.12794983]
[1728225786686,0.68076149,62568.0,62567.0,0.12794983]
[1728225786888,0.68076149,62568.0,62567.0,0.0024]
[1728225787501,0.20128332,62568.0,62567.0,0.001]
[1728225787794,1.29476332,62568.0,62567.0,0.002]
[1728225790896,1.29476332,62568.0,62560.0,0.0004]
[1728225791091,0.1704,62561.0,62560.0,0.0004]
[1728225791297,0.1704,62561.0,62556.0,0.35717351]
[1728225791592,0.1704,62557.0,62556.0,0.35717351]
[1728225792097,0.0004,62557.0,62556.0,0.35717351]
[1728225793598,0.02982589,62557.0,62554.0,0.00841883]
[1728225793796,0.17,62555.0,62554.0,0.00841883]
[1728225793987,0.17,62555.0,62551.0,0.0004]
[1728225793988,0.1704,62555.0,62551.0,0.0004]
[1728225794192,0.0004,62554.0,62551.0,0.0004]
[1728225794387,0.0004,62552.0,62549.0,0.0326]
[1728225794598,0.1704,62550.0,62549.0,0.0326]
[1728225795094,1.1312,62550.0,62536.0,0.0111]
[1728225795302,0.1704,62537.0,62532.0,0.404]
[1728225795495,0.1704,62533.0,62532.0,0.3929]
[1728225796986,0.1844,62533.0,62532.0,0.3939]
[1728225797398,0.1844,62533.0,62532.0,0.3949]
[1728225797599,0.1854,62533.0,62532.0,0.3949]
[1728225798011,0.1844,62533.0,62532.0,0.3939]
[1728225798192,0.1854,62533.0,62532.0,0.3949]
[1728225798392,0.04412307,62533.0,62532.0,0.3949]
[1728225798594,0.0154,62533.0,62532.0,0.3949]
[1728225798993,0.0004,62537.0,62532.0,0.3949]
[1728225799194,0.0004,62537.0,62536.0,0.17]
[1728225799404,0.17,62545.0,62532.0,0.3939]
[1728225799599,0.17,62545.0,62535.0,0.17]
[1728225799600,0.19908417,62545.0,62535.0,0.17]
[1728225800002,0.02908417,62545.0,62535.0,0.17]
[1728225800306,0.014,62537.0,62535.0,0.17]
[1728225800509,0.17,62544.0,62535.0,0.17]
[1728225800698,0.17,62544.0,62536.0,0.00841883]
[1728225800902,0.17,62544.0,62537.0,0.00841883]
[1728225802612,0.17,62544.0,62537.0,0.00941883]
[1728225803016,0.17,62544.0,62537.0,0.01041883]
[1728225804919,0.17,62544.0,62537.0,0.00941883]
[1728225805120,0.17,62544.0,62537.0,0.01041883]
[1728225806520,0.17,62544.0,62538.0,0.00841883]
[1728225807727,0.03134,62546.0,62543.0,0.17]
[1728225807933,0.0023999,62546.0,62545.0,0.063957]
[1728225808216,0.0004,62550.0,62549.0,0.063953]
[1728225808421,0.0004,62552.0,62549.0,0.594753]
[1728225808814,0.0004,62552.0,62550.0,0.063951]
[1728225809118,0.0004,62557.0,62551.0,0.06395]
[1728225809319,0.02925987,62555.0,62553.0,0.17]
[1728225809516,0.0004,62555.0,62553.0,0.17841883]
[1728225809716,0.0004,62557.0,62554.0,0.543547]
[1728225810116,0.0004,62557.0,62555.0,0.47956]
[1728225810317,0.0004,62557.0,62555.0,1.07956]
[1728225810521,0.0004,62557.0,62556.0,0.47956]
[1728225811016,0.0004,62557.0,62556.0,1.07956]
[1728225811723,0.0004,62557.0,62556.0,0.47956]
[1728225811921,0.0004,62557.0,62556.0,0.48056]
[1728225812511,0.0004,62557.0,62556.0,0.48897883]
[1728225812815,0.0004,62557.0,62556.0,1.08897883]
[1728225813226,0.0004,62557.0,62556.0,1.08997883]
[1728225813521,0.0004,62557.0,62556.0,1.15392383]
[1728225815828,0.0004,62557.0,62556.0,1.51472383]
[1728225817112,0.0004,62557.0,62556.0,1.51512383]
[1728225818033,0.0004,62557.0,62556.0,1.45117883]
[1728225820219,0.0004,62557.0,62556.0,0.37161883]
[1728225820915,0.03128482,62557.0,62556.0,0.37161883]
[1728225821823,0.0004,62557.0,62556.0,0.37161883]
[1728225827826,0.0004,62557.0,62556.0,0.43556383]
[1728225828535,0.0004,62557.0,62556.0,1.51512383]
[1728225830933,0.0004,62557.0,62556.0,1.03556383]
[1728225831236,0.0004,62557.0,62556.0,1.51512383]
[1728225833234,0.0004,62557.0,62556.0,1.45117883]
[1728225833534,0.0004,62557.0,62556.0,0.37161883]
[1728225837444,0.03955263,62557.0,62556.0,0.37161883]
[1728225837634,0.07043649,62557.0,62556.0,0.54161883]
[1728225838734,0.07043649,62557.0,62556.0,0.37161883]
[1728225841436,0.07043458,62557.0,62556.0,0.37161883]
[1728225842650,0.07043458,62557.0,62556.0,0.54161883]
[1728225844152,0.0004,62557.0,62556.0,0.54161883]
[1728225845247,0.0004,62557.0,62556.0,0.60556383]
[1728225849143,0.0288073,62561.0,62560.0,0.063941]
[1728225849144,0.0004,62561.0,62560.0,0.063941]
[1728225849350,0.0004,62568.0,62560.0,0.17841883]
[1728225849550,0.0004,62568.0,62567.0,0.3608]
[1728225850355,0.0004,62568.0,62567.0,0.43315283]
[1728225851958,0.0004,62568.0,62567.0,0.43415283]
[1728225852759,0.0004,62568.0,62567.0,0.43515283]
[1728225855560,0.0004,62568.0,62567.0,0.37121883]
[1728225856442,0.0004,62568.0,62567.0,0.43515283]
[1728225858053,0.0004,62568.0,62567.0,0.37121883]
[1728225859359,0.0004,62568.0,62567.0,0.43515283]
[1728225859748,0.03127745,62568.0,62567.0,0.43515283]
[1728225861661,0.03127745,62568.0,62567.0,0.51875283]
[1728225862951,0.03127745,62568.0,62567.0,0.87955283]
[1728225863360,0.0004,62568.0,62567.0,0.87955283]
[1728225864158,0.0004,62568.0,62567.0,1.95903283]
[1728225865772,0.0037,62579.0,62574.0,0.063927]
[1728225866074,0.0004,62584.0,62583.0,0.063918]
[1728225866259,0.02893916,62584.0,62583.0,0.233918]
[1728225866458,0.0004,62584.0,62583.0,0.233918]
[1728225867578,0.0004,62584.0,62583.0,0.234918]
[1728225869159,0.0004,62584.0,62583.0,1.314278]
[1728225869571,0.0004,62584.0,62583.0,1.315278]
[1728225871276,0.0004,62586.0,62585.0,0.063916]
[1728225871666,0.0004,62586.0,62585.0,0.55089483]
[1728225871970,0.0004,62586.0,62585.0,0.07153483]
[1728225872356,0.0004,62586.0,62585.0,0.55189483]
[1728225872762,0.0004,62586.0,62585.0,0.55289483]
[1728225872971,0.0004,62586.0,62585.0,0.07353483]
[1728225873763,0.0004,62586.0,62585.0,1.15289483]
[1728225874163,0.0004,62586.0,62585.0,0.48897883]
[1728225875972,0.0004,62586.0,62585.0,0.73121883]
[1728225877175,0.0004,62586.0,62585.0,0.79513483]
[1728225877368,0.0004,62586.0,62585.0,1.27449483]
[1728225878481,0.0004,62586.0,62585.0,0.79513483]
[1728225878965,0.0004,62586.0,62585.0,0.73121883]
[1728225881066,0.0004,62586.0,62585.0,0.79513483]
[1728225889978,0.03142743,62586.0,62585.0,0.79513483]
[1728225892482,0.07055734,62586.0,62585.0,0.79513483]
[1728225894170,0.0004,62586.0,62585.0,0.79513483]
[1728225895067,0.03161746,62586.0,62585.0,0.79513483]
[1728225896381,0.03161746,62586.0,62585.0,0.90513483]
[1728225897474,0.0004,62588.0,62587.0,0.063914]
[1728225897686,0.0004,62588.0,62587.0,0.07153283]
[1728225899079,0.0004,62588.0,62587.0,0.07253283]
[1728225899481,0.00239708,62597.0,62587.0,0.00861883]
[1728225899786,0.0312861,62596.0,62593.0,0.063907]
[1728225900087,0.0312861,62595.0,62594.0,0.07152583]
[1728225900383,0.03131531,62595.0,62594.0,0.00761883]
[1728225900580,0.03114693,62597.0,62594.0,0.00761883]
[1728225900889,0.03114693,62597.0,62596.0,0.534705]
[1728225901485,0.06249005,62597.0,62596.0,0.534705]
[1728225902077,0.03114693,62597.0,62596.0,0.4708]
[1728225902588,0.06255669,62597.0,62596.0,0.4708]
[1728225903384,0.06255669,62597.0,62596.0,0.4718]
[1728225903589,0.06255669,62597.0,62596.0,0.4728]
[1728225904011,0.03114693,62597.0,62596.0,0.4728]
[1728225904486,0.07027318,62597.0,62596.0,0.48041883]
[1728225904689,0.03114693,62597.0,62596.0,0.48041883]
[1728225905188,0.10166128,62597.0,62596.0,0.48041883]
[1728225906391,0.10166128,62597.0,62596.0,0.48081883]
[1728225907385,0.10166139,62597.0,62596.0,0.48081883]
[1728225907979,0.10166139,62597.0,62596.0,0.37081883]
[1728225908182,0.10166139,62597.0,62596.0,0.48081883]
[1728225908589,0.10166139,62597.0,62596.0,0.37081883]
[1728225909186,0.10166139,62597.0,62596.0,0.48081883]
[1728225909791,0.10157974,62597.0,62596.0,0.48081883]
[1728225912597,0.03114693,62597.0,62596.0,0.48081883]
[1728225914296,0.06241272,62597.0,62596.0,0.48081883]
[1728225914493,0.06241285,62597.0,62596.0,0.48081883]
[1728225914899,0.03114693,62597.0,62596.0,0.90552383]
[1728225917393,0.00239708,62597.0,62596.0,0.90552383]
[1728225927896,0.02867527,62602.0,62596.0,0.84161883]
[1728225928101,0.263,62608.0,62601.0,0.173899]
[1728225928307,0.03911897,62607.0,62602.0,0.063898]
[1728225928606,0.03911897,62606.0,62603.0,0.063897]
[1728225928800,0.03911897,62605.0,62604.0,0.063896]
[1728225929202,0.03911897,62605.0,62604.0,0.07151483]
[1728225929414,0.03911897,62605.0,62604.0,0.18151483]
[1728225930716,0.03911897,62605.0,62604.0,0.18251483]
[1728225931611,0.1593207,62610.0,62609.0,0.063891]
[1728225931817,0.17544083,62614.0,62611.0,0.063888]
[1728225932009,0.17544083,62614.0,62613.0,0.11]
[1728225932519,0.20449305,62614.0,62613.0,0.11]
[1728225933012,0.0902,62629.0,62613.0,0.11]
[1728225933319,0.0902,62629.0,62628.0,0.11]
[1728225933616,0.02883065,62629.0,62628.0,0.00761883]
[1728225933814,0.00239529,62642.0,62628.0,0.11761883]
[1728225933815,0.265,62632.0,62628.0,0.11761883]
[1728225934029,0.09592536,62638.0,62631.0,0.11]
[1728225934231,0.23539589,62633.0,62631.0,0.11]
[1728225935335,0.09592536,62638.0,62632.0,0.48661883]
[1728225935533,0.09592536,62638.0,62637.0,0.11]
[1728225935832,0.09592536,62638.0,62636.0,0.11]
[1728225936035,0.09592536,62638.0,62637.0,0.00761883]
[1728225936231,0.09592536,62638.0,62637.0,0.36841883]
[1728225936627,0.02850548,62640.0,62637.0,0.38241883]
[1728225936826,0.11,62648.0,62639.0,0.11]
[1728225937028,0.11,62648.0,62643.0,0.11]
[1728225937228,0.089,62649.0,62646.0,0.11]
[1728225938328,0.089,62649.0,62640.0,0.00761883]
[1728225938521,0.089,62649.0,62647.0,0.11]
[1728225939044,0.11745583,62649.0,62647.0,0.11]
[1728225939329,0.11745583,62649.0,62640.0,0.00761883]
[1728225939330,0.11745583,62649.0,62646.0,0.001]
[1728225939532,0.0004,62647.0,62646.0,0.118]
[1728225939723,0.0004,62647.0,62646.0,0.008]
[1728225940233,0.0004,62647.0,62646.0,0.001]
[1728225940632,0.0004,62647.0,62640.0,0.11761883]
[1728225940829,0.1104,62641.0,62640.0,0.00761883]
[1728225941033,0.0004,62641.0,62640.0,0.00761883]
[1728225941236,1.18932,62641.0,62640.0,0.00761883]
[1728225941933,1.18932,62641.0,62640.0,0.01561883]
[1728225942134,0.1104,62641.0,62640.0,0.01561883]
[1728225942530,0.02896694,62641.0,62640.0,0.01561883]
[1728225942729,0.05981168,62641.0,62640.0,0.01561883]
[1728225943030,0.05981168,62641.0,62640.0,0.02861883]
[1728225943031,0.16981168,62641.0,62640.0,0.02861883]
[1728225943426,0.05981133,62641.0,62640.0,0.02861883]
[1728225944841,1.24873133,62641.0,62636.0,0.0004]
[1728225945145,0.0004,62637.0,62625.0,0.0111]
[1728225945439,0.0004,62629.0,62624.0,0.11]
[1728225945630,0.0004,62629.0,62628.0,1.2379]
[1728225945834,0.03124439,62629.0,62628.0,1.2379]
[1728225946036,0.03124439,62629.0,62625.0,0.8771]
[1728225946245,0.11,62626.0,62625.0,0.8775]
[1728225946436,0.03084439,62626.0,62625.0,0.8775]
[1728225947234,0.63084439,62626.0,62625.0,0.0004]
[1728225947638,0.06995612,62626.0,62625.0,0.0004]
[1728225947942,0.03084439,62626.0,62625.0,0.0004]
[1728225948135,0.03084439,62628.0,62625.0,0.0004]
[1728225948335,0.03084824,62627.0,62625.0,0.0024]
[1728225948534,0.03084824,62626.0,62625.0,0.0024]
[1728225948840,0.03084824,62626.0,62625.0,0.0907]
[1728225948841,0.014,62626.0,62625.0,0.0907]
[1728225949032,0.015,62626.0,62625.0,0.1037]
[1728225949233,0.04584824,62626.0,62625.0,0.1037]
[1728225949643,0.015,62626.0,62625.0,0.1037]
[1728225949838,0.02,62626.0,62625.0,0.0917]
[1728225950541,0.006,62626.0,62625.0,0.0917]
[1728225950745,0.013,62626.0,62625.0,0.0917]
[1728225951235,0.022,62626.0,62625.0,0.0917]
[1728225951947,0.022,62626.0,62625.0,0.8338]
[1728225952348,0.009,62626.0,62625.0,0.8328]
[1728225952548,0.01,62626.0,62625.0,0.8338]
[1728225954352,0.001,62626.0,62625.0,0.8328]
[1728225954648,0.01,62626.0,62625.0,0.8338]
[1728225958052,0.01,62626.0,62625.0,0.8288]
[1728225961751,0.02903022,62629.0,62625.0,0.9988]
[1728225961752,0.0004,62629.0,62625.0,0.9988]
[1728225961949,0.14269031,62640.0,62628.0,0.063872]
[1728225962149,0.00239597,62642.0,62627.0,0.17]
[1728225962150,0.03084664,62636.0,62627.0,0.17]
[1728225962352,0.0004,62628.0,62627.0,0.7421]
[1728225962545,0.03124602,62628.0,62627.0,0.7421]
[1728225962855,1.11028602,62628.0,62627.0,0.7421]
[1728225963158,1.1493978,62628.0,62627.0,0.7421]
[1728225963651,1.34111282,62628.0,62627.0,0.7421]
[1728225963859,1.19942251,62628.0,62627.0,0.001]
[1728225964349,1.19942251,62628.0,62620.0,0.3608]
[1728225964350,0.17,62621.0,62620.0,0.3608]
[1728225964559,0.28899421,62621.0,62610.0,0.0037]
[1728225964759,0.28899421,62621.0,62607.0,0.3608]
[1728225964760,0.17,62611.0,62607.0,0.3608]
[1728225965050,0.1807,62610.0,62607.0,0.3608]
[1728225965356,0.1807,62610.0,62600.0,0.4547]
[1728225965357,0.3608,62608.0,62601.0,0.70718275]
[1728225965647,0.17,62602.0,62595.0,0.0037]
[1728225965848,0.17,62597.0,62592.0,0.00239682]
[1728225966256,0.17,62597.0,62586.0,0.0037]
[1728225966257,0.47928,62596.0,62586.0,0.0037]
[1728225966456,0.17,62587.0,62582.0,0.0037]
[1728225966640,0.47928,62596.0,62581.0,0.3608]
[1728225966641,0.17,62582.0,62581.0,0.3608]
[1728225966944,0.17,62582.0,62577.0,0.00239777]
[1728225967155,0.17,62578.0,62577.0,0.00239777]
[1728225967343,0.17,62578.0,62571.0,0.0906]
[1728225967542,0.17,62578.0,62564.0,0.0037]
[1728225967543,0.17,62572.0,62564.0,0.0037]
[1728225967743,0.17,62567.0,62562.0,0.063939]
[1728225968343,0.17,62567.0,62558.0,0.0906]
[1728225969653,0.47952,62566.0,62556.0,0.0004]
[1728225969961,0.17,62559.0,62556.0,0.0004]
[1728225970550,0.7216,62557.0,62542.0,0.0111]
[1728225970758,0.7216,62557.0,62529.0,0.3608]
[1728225970759,0.17,62546.0,62535.0,0.0111]
[1728225970951,0.7216,62557.0,62529.0,0.3608]
[1728225970952,0.17,62537.0,62529.0,0.3608]
[1728225971145,0.17,62537.0,62530.0,0.063972]
[1728225971456,0.7216,62557.0,62529.0,0.3608]
[1728225971457,0.5308,62545.0,62532.0,0.17]
[1728225971657,0.5308,62545.0,62529.0,0.3608]
[1728225971658,0.17,62556.0,62544.0,0.17]
[1728225972053,0.17,62556.0,62541.0,0.3608]
[1728225972054,0.00239957,62559.0,62553.0,0.17]
[1728225972359,0.00239957,62559.0,62553.0,0.5308]
[1728225972558,0.00239957,62559.0,62556.0,0.006]
[1728225972747,0.17239957,62559.0,62556.0,0.006]
[1728225973146,0.47956,62558.0,62553.0,0.3608]
[1728225973347,0.17,62554.0,62553.0,0.3608]
[1728225973548,0.00339957,62559.0,62553.0,0.3608]
[1728225973855,0.00339957,62559.0,62555.0,0.17]
[1728225974051,0.00339957,62559.0,62556.0,0.001]
[1728225974247,0.17,62568.0,62556.0,0.001]
[1728225974651,0.02839968,62569.0,62564.0,0.17]
[1728225974856,0.02839968,62569.0,62556.0,0.064945]
[1728225974857,0.3608,62571.0,62560.0,0.17]
[1728225975061,0.3608,62571.0,62564.0,0.17]
[1728225976447,0.3608,62571.0,62556.0,0.001]
[1728225976448,0.3608,62578.0,62568.0,0.17]
[1728225976653,0.39016535,62578.0,62572.0,0.17]
[1728225976847,0.39016535,62578.0,62567.0,0.3608]
[1728225977048,0.17,62568.0,62565.0,0.70818275]
[1728225977247,0.11401147,62568.0,62565.0,0.70718275]
[1728225977464,0.5308,62576.0,62565.0,0.70718275]
[1728225977665,0.002,62568.0,62565.0,0.70718275]
[1728225977955,0.002,62568.0,62566.0,0.17]
[1728225978256,0.3608,62576.0,62566.0,0.17]
[1728225978463,0.3608,62576.0,62565.0,0.70918275]
[1728225978662,0.3608,62576.0,62565.0,0.70818275]
[1728225978850,0.3608,62576.0,62568.0,0.001]
[1728225979046,0.02808947,62578.0,62569.0,1.06798275]
[1728225979259,0.3608,62593.0,62577.0,0.3608]
[1728225979568,0.3608,62593.0,62581.0,0.313919]
[1728225979762,0.0008,62598.0,62587.0,0.3608]
[1728225979955,0.6108,62604.0,62587.0,0.3608]
[1728225980157,0.6108,62604.0,62588.0,0.70718275]
[1728225980354,0.6108,62604.0,62587.0,0.3608]
[1728225980355,0.3608,62604.0,62590.0,0.25]
[1728225980560,0.3608,62604.0,62590.0,0.95718275]
[1728225980958,0.38923508,62604.0,62591.0,0.70718275]
[1728225981656,0.3608,62604.0,62591.0,0.70718275]
[1728225982561,0.6108,62604.0,62591.0,0.70718275]
[1728225982766,0.3608,62604.0,62591.0,0.70718275]
[1728225982968,0.3608,62604.0,62594.0,0.25]
[1728225983172,0.3608,62604.0,62591.0,0.70818275]
[1728225983867,0.3608,62604.0,62591.0,0.70918275]
[1728225984171,0.3608,62604.0,62592.0,0.0863]
[1728225984362,0.3608,62604.0,62593.0,0.70718275]
[1728225985971,0.25,62599.0,62593.0,0.70718275]
[1728225986170,0.25,62603.0,62593.0,0.70818275]
[1728225987067,0.25,62603.0,62593.0,0.70918275]
[1728225987381,0.3608,62604.0,62593.0,0.70918275]
[1728225988177,0.3608,62604.0,62593.0,0.70818275]
[1728225988566,0.25,62595.0,62593.0,0.70818275]
[1728225988966,0.25,62595.0,62593.0,0.70918275]
[1728225989866,0.25,62595.0,62593.0,0.70818275]
[1728225990068,0.25,62595.0,62593.0,0.71418275]
[1728225990968,0.47928,62594.0,62593.0,0.71418275]
[1728225991169,0.47928,62594.0,62593.0,0.007]
[1728225991370,1.07928,62594.0,62593.0,0.007]
[1728225991675,1.44008,62594.0,62593.0,0.002]
[1728225991979,0.02836567,62595.0,62593.0,0.002]
[1728225992276,0.25,62603.0,62593.0,0.002]
[1728225993766,0.25,62598.0,62593.0,0.002]
[1728225994872,0.25,62602.0,62593.0,0.001]
[1728225995083,0.25,62602.0,62593.0,0.002]
[1728225995373,0.25,62602.0,62593.0,0.001]
[1728225995581,0.25,62602.0,62593.0,0.002]
[1728225995769,0.39076532,62605.0,62593.0,0.002]
[1728225995971,0.38988532,62605.0,62593.0,0.002]
[1728225996167,0.38988532,62605.0,62594.0,0.47873154]
[1728225997866,0.38988532,62605.0,62594.0,0.47973154]
[1728225999480,0.38988532,62605.0,62594.0,0.48073154]
[1728226000283,0.38988532,62605.0,62596.0,0.424704]
[1728226000284,0.02908532,62605.0,62596.0,0.424704]
[1728226000483,0.3608,62608.0,62597.0,0.47873154]
[1728226000877,0.17,62604.0,62597.0,0.47873154]
[1728226001378,0.17,62600.0,62594.0,0.002]
[1728226001582,0.17,62600.0,62596.0,0.001]
[1728226002576,0.17,62600.0,62596.0,0.002]
[1728226004180,0.17,62600.0,62597.0,0.001]
[1728226004585,0.17,62600.0,62596.0,0.001]
[1728226004781,0.19863067,62600.0,62596.0,0.002]
[1728226005185,0.19863067,62600.0,62596.0,0.001]
[1728226005485,0.19863067,62600.0,62597.0,0.001]
[1728226005686,0.19863067,62600.0,62597.0,0.002]
[1728226005892,0.19863067,62600.0,62597.0,0.001]
[1728226006282,0.19863067,62600.0,62596.0,0.001]
[1728226006491,0.19863067,62600.0,62596.0,0.002]
[1728226007187,0.19863067,62600.0,62597.0,0.001]
[1728226007689,0.19863067,62600.0,62597.0,0.002]
[1728226008074,0.19863067,62600.0,62597.0,0.001]
[1728226008792,0.19863067,62600.0,62597.0,0.002]
[1728226008989,0.02863067,62600.0,62597.0,0.001]
[1728226009191,0.3608,62608.0,62598.0,0.0863]
[1728226009489,0.03086344,62607.0,62598.0,0.0863]
[1728226009794,0.17,62605.0,62598.0,0.0863]
[1728226010089,0.03086344,62604.0,62599.0,0.063901]
[1728226010393,0.17,62604.0,62599.0,0.063901]
[1728226012090,0.19913589,62608.0,62599.0,0.064901]
[1728226012288,0.03086133,62607.0,62599.0,0.064901]
[1728226012488,0.03086152,62606.0,62599.0,0.064901]
[1728226012683,0.02913589,62608.0,62603.0,0.17]
[1728226012889,0.3608,62614.0,62607.0,0.233893]
[1728226013089,0.3608,62620.0,62607.0,0.594693]
[1728226013090,0.03068284,62610.0,62607.0,0.594693]
[1728226013390,0.00239733,62610.0,62607.0,0.594693]
[1728226013694,0.00239623,62623.0,62607.0,0.5308]
[1728226013884,0.17,62621.0,62608.0,0.0937]
[1728226014191,0.00239623,62623.0,62611.0,0.17]
[1728226014878,0.17,62621.0,62613.0,0.063887]
[1728226015991,0.00239623,62623.0,62613.0,0.063887]
[1728226016392,0.00239623,62623.0,62613.0,0.064887]
[1728226016588,0.00239623,62623.0,62613.0,0.065887]
[1728226016993,0.00239623,62623.0,62613.0,0.002]
[1728226017294,0.00239623,62623.0,62614.0,0.063886]
[1728226017596,0.00239623,62623.0,62615.0,0.0905]
[1728226018090,0.00239623,62623.0,62615.0,0.2605]
[1728226018284,0.00239623,62623.0,62618.0,0.063882]
[1728226018485,0.00239623,62623.0,62619.0,0.06388]
[1728226018686,0.00239623,62623.0,62615.0,0.2605]
[1728226018687,0.00239623,62623.0,62622.0,0.3608]
[1728226018889,0.00239623,62623.0,62622.0,0.83953154]
[1728226019187,0.00239623,62623.0,62622.0,0.47873154]
[1728226021189,0.00239623,62623.0,62622.0,0.47973154]
[1728226022293,0.03325007,62623.0,62622.0,0.47973154]
[1728226022984,0.03325007,62623.0,62622.0,0.001]
[1728226023381,0.03325007,62623.0,62622.0,0.002]
[1728226023992,0.00239623,62623.0,62622.0,0.002]
[1728226026185,0.00239623,62623.0,62622.0,0.0024]
[1728226026392,0.00239623,62623.0,62622.0,0.0014]
[1728226027389,0.00239623,62623.0,62622.0,0.48013154]
[1728226030599,0.00239623,62623.0,62622.0,0.0014]
[1728226031302,1.08147623,62623.0,62622.0,0.0014]
[1728226032202,1.11233243,62623.0,62622.0,0.0014]
[1728226033102,1.15144996,62623.0,62622.0,0.0014]
[1728226034606,1.51224996,62623.0,62622.0,0.0014]
[1728226034809,1.56128214,62623.0,62609.0,0.36319583]
[1728226035107,0.1704,62610.0,62609.0,0.36319583]
[1728226035294,0.20125798,62610.0,62609.0,0.36319583]
[1728226035695,0.20125798,62610.0,62609.0,0.00239583]
[1728226036091,0.20125931,62610.0,62609.0,0.01139583]
[1728226036403,0.68041931,62610.0,62609.0,0.01139583]
[1728226036618,0.71954202,62610.0,62609.0,0.009]
[1728226036904,0.71954202,62610.0,62609.0,0.014]
[1728226037105,0.24038202,62610.0,62609.0,0.014]
[1728226037296,0.24038202,62610.0,62609.0,0.018]
[1728226037497,0.20125931,62610.0,62609.0,0.018]
[1728226037692,0.03125931,62610.0,62609.0,0.018]
[1728226037904,0.03125931,62610.0,62609.0,0.015]
[1728226038209,0.0603254,62610.0,62609.0,0.015]
[1728226038502,0.0603254,62610.0,62609.0,0.014]
[1728226038697,0.0603254,62610.0,62609.0,0.015]
[1728226039310,0.0603254,62610.0,62609.0,0.001]
[1728226039511,0.0603254,62610.0,62609.0,0.002]
[1728226039512,0.02946609,62610.0,62609.0,0.002]
[1728226040297,0.02946609,62610.0,62609.0,0.001]
[1728226040496,0.00239623,62623.0,62609.0,2.09069154]
[1728226040712,0.00239623,62623.0,62615.0,0.233884]
[1728226041002,0.00239623,62623.0,62620.0,0.3608]
[1728226041207,0.00239623,62623.0,62621.0,0.094]
[1728226041706,0.03065381,62623.0,62621.0,0.094]
[1728226041907,0.00239623,62623.0,62621.0,0.094]
[1728226043800,0.00239623,62623.0,62621.0,0.095]
[1728226044003,0.00239623,62623.0,62621.0,0.096]
[1728226044206,0.03112285,62623.0,62621.0,0.096]